Workbook

Sheet 1st Int
A1: SXR 1st Integral SW measurements
A2: Background has been subtracted | M2: Center values | O2: Average of 3 points x = -2 to x = 2
A3: y pos | B3: 0 | C3: mm
A4: Gap nominal | B4: 10 | C4: mm | D4: 15 | E4: mm | F4: 20 | G4: mm | H4: 30 | I4: mm | J4: 100 | K4: mm | M4: Gap | N4: Ix [muTm] | O4: Iy [muTm] | Q4: Gap interval | R4: Ix [muTm] | S4: Iy [muTm]
A5: Encoder | B5: ='DF raw data'!B7 -> 390667 | D5: ='DF raw data'!G7 -> 491273 | F5: ='DF raw data'!L7 -> 591603 | H5: ='DF raw data'!Q7 -> 791856 | J5: ='DF raw data'!V7 -> 2191950 | M5: =B4 -> 10 | N5: =B21 -> 0.4084733 | O5: =C21 -> -6.352513363 | Q5: 10-30 | R5: =MAX(N5:N8)-MIN(N5:N8) -> 13.9791934 | S5: =MAX(O5:O8)-MIN(O5:O8) -> 11.56023336
A6: x pos [mm] | B6: Ix [muTm] | C6: Iy [muTm] | D6: Ix [muTm] | E6: Iy [muTm] | F6: Ix [muTm] | G6: Iy [muTm] | H6: Ix [muTm] | I6: Iy [muTm] | J6: Ix [muTm] | K6: Iy [muTm] | M6: =D4 -> 15 | N6: =D21 -> -13.5707201 | O6: =E21 -> -4.983430067 | Q6: 10-100 | R6: =MAX(N5:N9)-MIN(N5:N9) -> 13.9791934 | S6: =MAX(O5:O9)-MIN(O5:O9) -> 11.56023336
A7: -10 | B7: ='DF raw data'!B9 -> -10.40813 | C7: ='DF raw data'!C9 -> 22.615561 | D7: ='DF raw data'!G9 -> -20.547199 | E7: ='DF raw data'!H9 -> 15.7215 | F7: ='DF raw data'!L9 -> -12.45412 | G7: ='DF raw data'!M9 -> 18.966721 | H7: ='DF raw data'!Q9 -> -13.10886 | I7: ='DF raw data'!R9 -> 12.82024 | J7: ='DF raw data'!V9 -> 24.50502 | K7: ='DF raw data'!W9 -> 47.10722 | M7: =F4 -> 20 | N7: =F21 -> -2.197043403 | O7: =G21 -> -3.262340067
A8: -8 | B8: ='DF raw data'!B10 -> -16.926889 | C8: ='DF raw data'!C10 -> 11.92151 | D8: ='DF raw data'!G10 -> -11.1257 | E8: ='DF raw data'!H10 -> 6.5562 | F8: ='DF raw data'!L10 -> -0.75678003 | G8: ='DF raw data'!M10 -> 29.377399 | H8: ='DF raw data'!Q10 -> -17.3123 | I8: ='DF raw data'!R10 -> 8.1581202 | J8: ='DF raw data'!V10 -> 22.197889 | K8: ='DF raw data'!W10 -> 27.06238 | M8: =H4 -> 30 | N8: =H21 -> -3.305809967 | O8: =I21 -> 5.207719993 | Q8: Limits 10-30 | R8: +/-7.5 | S8: +/-7.5
A9: -6 | B9: ='DF raw data'!B11 -> -3.44186 | C9: ='DF raw data'!C11 -> 11.72412 | D9: ='DF raw data'!G11 -> -0.33118001 | E9: ='DF raw data'!H11 -> 15.3243 | F9: ='DF raw data'!L11 -> -16.65489 | G9: ='DF raw data'!M11 -> 24.74086 | H9: ='DF raw data'!Q11 -> -4.1212401 | I9: ='DF raw data'!R11 -> 20.43671 | J9: ='DF raw data'!V11 -> 2.96984 | K9: ='DF raw data'!W11 -> 18.416019 | M9: =J4 -> 100 | N9: =J21 -> -7.941366633 | O9: =K21 -> 3.554943333
A10: -4 | B10: ='DF raw data'!B12 -> -3.57862 | C10: ='DF raw data'!C12 -> -0.078539997 | D10: ='DF raw data'!G12 -> -3.16677 | E10: ='DF raw data'!H12 -> 3.0032301 | F10: ='DF raw data'!L12 -> -0.17578 | G10: ='DF raw data'!M12 -> -11.79502 | H10: ='DF raw data'!Q12 -> 4.2343402 | I10: ='DF raw data'!R12 -> -2.1530499 | J10: ='DF raw data'!V12 -> -4.2705798 | K10: ='DF raw data'!W12 -> 4.1683102
A11: -2 | B11: ='DF raw data'!B13 -> -1.21999 | C11: ='DF raw data'!C13 -> -0.72435999 | D11: ='DF raw data'!G13 -> -9.9345703 | E11: ='DF raw data'!H13 -> -4.07024 | F11: ='DF raw data'!L13 -> -6.9236102 | G11: ='DF raw data'!M13 -> 6.14711 | H11: ='DF raw data'!Q13 -> -6.7789402 | I11: ='DF raw data'!R13 -> 12.3074 | J11: ='DF raw data'!V13 -> -3.58336 | K11: ='DF raw data'!W13 -> 8.26299 | M11: Limits | N11: +/-17.5 | O11: +/-17.5
A12: 0 | B12: ='DF raw data'!B14 -> 3.6421299 | C12: ='DF raw data'!C14 -> -11.27694 | D12: ='DF raw data'!G14 -> -10.04942 | E12: ='DF raw data'!H14 -> -2.5625501 | F12: ='DF raw data'!L14 -> -0.11144 | G12: ='DF raw data'!M14 -> -4.4263902 | H12: ='DF raw data'!Q14 -> 4.7518001 | I12: ='DF raw data'!R14 -> 2.5121 | J12: ='DF raw data'!V14 -> -4.9184799 | K12: ='DF raw data'!W14 -> 0.28033
A13: 2 | B13: ='DF raw data'!B15 -> -1.19672 | C13: ='DF raw data'!C15 -> -7.0562401 | D13: ='DF raw data'!G15 -> -20.72817 | E13: ='DF raw data'!H15 -> -8.3175001 | F13: ='DF raw data'!L15 -> 0.44391999 | G13: ='DF raw data'!M15 -> -11.50774 | H13: ='DF raw data'!Q15 -> -7.8902898 | I13: ='DF raw data'!R15 -> 0.80365998 | J13: ='DF raw data'!V15 -> -15.32226 | K13: ='DF raw data'!W15 -> 2.12151
A14: 4 | B14: ='DF raw data'!B16 -> -3.2936699 | C14: ='DF raw data'!C16 -> -7.9275198 | D14: ='DF raw data'!G16 -> 4.2442198 | E14: ='DF raw data'!H16 -> 3.4748499 | F14: ='DF raw data'!L16 -> -4.6249199 | G14: ='DF raw data'!M16 -> -4.7775402 | H14: ='DF raw data'!Q16 -> 1.03598 | I14: ='DF raw data'!R16 -> 11.954 | J14: ='DF raw data'!V16 -> -5.6610198 | K14: ='DF raw data'!W16 -> 5.9339399
A15: 6 | B15: ='DF raw data'!B17 -> -13.29407 | C15: ='DF raw data'!C17 -> -21.514299 | D15: ='DF raw data'!G17 -> -12.91609 | E15: ='DF raw data'!H17 -> -10.83672 | F15: ='DF raw data'!L17 -> -8.16224 | G15: ='DF raw data'!M17 -> -15.33613 | H15: ='DF raw data'!Q17 -> -10.10569 | I15: ='DF raw data'!R17 -> -0.83767003 | J15: ='DF raw data'!V17 -> -2.8315599 | K15: ='DF raw data'!W17 -> -0.37485999
A16: 8 | B16: ='DF raw data'!B18 -> -7.65868 | C16: ='DF raw data'!C18 -> -16.402149 | D16: ='DF raw data'!G18 -> -11.48851 | E16: ='DF raw data'!H18 -> -12.71106 | F16: ='DF raw data'!L18 -> -14.88943 | G16: ='DF raw data'!M18 -> 3.93168 | H16: ='DF raw data'!Q18 -> -12.34858 | I16: ='DF raw data'!R18 -> 5.4706602 | J16: ='DF raw data'!V18 -> -3.4389901 | K16: ='DF raw data'!W18 -> 0.10459
A17: 10 | B17: ='DF raw data'!B19 -> -12.52082 | C17: ='DF raw data'!C19 -> -26.15579 | D17: ='DF raw data'!G19 -> -8.90658 | E17: ='DF raw data'!H19 -> -16.23193 | F17: ='DF raw data'!L19 -> -16.7773 | G17: ='DF raw data'!M19 -> 6.8986101 | H17: ='DF raw data'!Q19 -> -15.3036 | I17: ='DF raw data'!R19 -> 1.10812 | J17: ='DF raw data'!V19 -> -6.9569302 | K17: ='DF raw data'!W19 -> -4.60357
A19: DF indice | B19: ='DF raw data'!B4 -> 89 | D19: ='DF raw data'!G4 -> 90 | F19: ='DF raw data'!L4 -> 92 | H19: ='DF raw data'!Q4 -> 93 | J19: ='DF raw data'!V4 -> 94
A21: Average | B21: =AVERAGE(B11:B13) -> 0.4084733 | C21: =AVERAGE(C11:C13) -> -6.352513363 | D21: -13.5707201 | E21: -4.983430067 | F21: -2.197043403 | G21: -3.262340067 | H21: -3.305809967 | I21: 5.207719993 | J21: -7.941366633 | K21: 3.554943333

Sheet 2nd Int
A1: SXR 2nd Integral SW measurements
A2: Background has been subtracted | M2: Center values | O2: Average of 3 points x = -2 to x = 2
A3: y pos | B3: 0 | C3: mm
A4: Gap | B4: 10 | C4: mm | D4: 15 | E4: mm | F4: 20 | G4: mm | H4: 30 | I4: mm | J4: 100 | K4: mm | M4: Gap | N4: Jx [muTm^2] | O4: Jy [muTm^2] | Q4: Gap interval | R4: Jx [muTm^2] | S4: Jy [muTm^2]
A5: Encoder | B5: ='DF raw data'!B7 -> 390667 | D5: ='DF raw data'!G7 -> 491273 | F5: ='DF raw data'!L7 -> 591603 | H5: ='DF raw data'!Q7 -> 791856 | J5: ='DF raw data'!V7 -> 2191950 | M5: =B4 -> 10 | N5: =B21 -> -1.0030248 | O5: =C21 -> -28.81531767 | Q5: 10-30 | R5: =MAX(N5:N8)-MIN(N5:N8) -> 28.76617257 | S5: =MAX(O5:O8)-MIN(O5:O8) -> 36.55817767
A6: x pos [mm] | B6: Jx [muTm^2] | C6: Jy [muTm^2] | D6: Jx [muTm^2] | E6: Jy [muTm^2] | F6: Jx [muTm^2] | G6: Jy [muTm^2] | H6: Jx [muTm^2] | I6: Jy [muTm^2] | J6: Jx [muTm^2] | K6: Jy [muTm^2] | M6: =D4 -> 15 | N6: =D21 -> -29.45586667 | O6: =E21 -> -23.12800127 | Q6: 10-100 | R6: =MAX(N5:N9)-MIN(N5:N9) -> 31.81907397 | S6: =MAX(O5:O9)-MIN(O5:O9) -> 36.55817767
A7: -10 | B7: ='DF raw data'!D9/100 -> -12.872961 | C7: ='DF raw data'!E9/100 -> 5.0389404 | D7: ='DF raw data'!I9/100 -> -12.338459 | E7: ='DF raw data'!J9/100 -> -0.5947559 | F7: ='DF raw data'!N9/100 -> -11.582898 | G7: ='DF raw data'!O9/100 -> -4.0950635 | H7: ='DF raw data'!S9/100 -> -3.5398517 | I7: ='DF raw data'!T9/100 -> -9.0329102 | J7: ='DF raw data'!X9/100 -> -11.981813 | K7: ='DF raw data'!Y9/100 -> -12.00165 | M7: =F4 -> 20 | N7: =F21 -> -4.6187459 | O7: =G21 -> -24.40328783
A8: -8 | B8: ='DF raw data'!D10/100 -> -30.470127 | C8: ='DF raw data'!E10/100 -> -7.2257227 | D8: ='DF raw data'!I10/100 -> -26.729802 | E8: ='DF raw data'!J10/100 -> -20.620659 | F8: ='DF raw data'!N10/100 -> -9.918811 | G8: ='DF raw data'!O10/100 -> 39.662693 | H8: ='DF raw data'!S10/100 -> -29.654343 | I8: 3.38344 | J8: ='DF raw data'!X10/100 -> 6.3503491 | K8: ='DF raw data'!Y10/100 -> -1.8446338 | M8: =H4 -> 30 | N8: =H21 -> -0.6896941 | O8: =I21 -> 7.74286 | Q8: Limits 10-30 | R8: +/-42.5 | S8: +/-42.5
A9: -6 | B9: ='DF raw data'!D11/100 -> -5.7958661 | C9: ='DF raw data'!E11/100 -> -7.8565186 | D9: ='DF raw data'!I11/100 -> 8.2660138 | E9: ='DF raw data'!J11/100 -> -0.1078516 | F9: ='DF raw data'!N11/100 -> -16.718174 | G9: ='DF raw data'!O11/100 -> 15.152188 | H9: ='DF raw data'!S11/100 -> 6.4366199 | I9: 2.20269 | J9: ='DF raw data'!X11/100 -> 3.001167 | K9: ='DF raw data'!Y11/100 -> -6.4147266 | M9: =J4 -> 100 | N9: =J21 -> 2.3632073 | O9: =K21 -> -12.04408863
A10: -4 | B10: ='DF raw data'!D12/100 -> -9.3441541 | C10: ='DF raw data'!E12/100 -> -15.567407 | D10: ='DF raw data'!I12/100 -> -11.646913 | E10: ='DF raw data'!J12/100 -> -23.725337 | F10: ='DF raw data'!N12/100 -> -21.732637 | G10: ='DF raw data'!O12/100 -> -30.458105 | H10: ='DF raw data'!S12/100 -> 1.383548 | I10: 9.02534 | J10: ='DF raw data'!X12/100 -> -6.7832861 | K10: ='DF raw data'!Y12/100 -> -26.603164
A11: -2 | B11: ='DF raw data'!D13/100 -> -3.2025546 | C11: ='DF raw data'!E13/100 -> -18.489551 | D11: ='DF raw data'!I13/100 -> -17.11444 | E11: ='DF raw data'!J13/100 -> -9.0937988 | F11: ='DF raw data'!N13/100 -> -13.103218 | G11: ='DF raw data'!O13/100 -> -3.0394385 | H11: ='DF raw data'!S13/100 -> -11.745631 | I11: 1.63822 | J11: ='DF raw data'!X13/100 -> 8.1464069 | K11: ='DF raw data'!Y13/100 -> 4.7674951 | M11: Limits | N11: +/-42.5 | O11: +/-42.5
A12: 0 | B12: ='DF raw data'!D14/100 -> 6.4104199 | C12: ='DF raw data'!E14/100 -> -45.721177 | D12: ='DF raw data'!I14/100 -> -20.28752 | E12: ='DF raw data'!J14/100 -> -23.175615 | F12: ='DF raw data'!N14/100 -> -4.3039331 | G12: ='DF raw data'!O14/100 -> -40.272681 | H12: ='DF raw data'!S14/100 -> 15.597131 | I12: 5.29326 | J12: ='DF raw data'!X14/100 -> 14.165804 | K12: ='DF raw data'!Y14/100 -> -18.345498
A13: 2 | B13: ='DF raw data'!D15/100 -> -6.2169397 | C13: ='DF raw data'!E15/100 -> -22.235225 | D13: ='DF raw data'!I15/100 -> -50.96564 | E13: ='DF raw data'!J15/100 -> -37.11459 | F13: ='DF raw data'!N15/100 -> 3.5509134 | G13: ='DF raw data'!O15/100 -> -29.897744 | H13: ='DF raw data'!S15/100 -> -5.9205823 | I13: 16.2971 | J13: ='DF raw data'!X15/100 -> -15.222589 | K13: ='DF raw data'!Y15/100 -> -22.554263
A14: 4 | B14: ='DF raw data'!D16/100 -> -8.3029956 | C14: ='DF raw data'!E16/100 -> -37.105186 | D14: ='DF raw data'!I16/100 -> 20.188856 | E14: ='DF raw data'!J16/100 -> -9.0064209 | F14: ='DF raw data'!N16/100 -> -18.072213 | G14: ='DF raw data'!O16/100 -> -26.64335 | H14: ='DF raw data'!S16/100 -> 19.91611 | I14: 10.6371 | J14: ='DF raw data'!X16/100 -> 12.71269 | K14: ='DF raw data'!Y16/100 -> -10.894971
A15: 6 | B15: ='DF raw data'!D17/100 -> -6.1244324 | C15: ='DF raw data'!E17/100 -> -56.149009 | D15: ='DF raw data'!I17/100 -> -19.100403 | E15: ='DF raw data'!J17/100 -> -36.728848 | F15: ='DF raw data'!N17/100 -> -13.533799 | G15: ='DF raw data'!O17/100 -> -61.135864 | H15: ='DF raw data'!S17/100 -> -13.79309 | I15: 10.6369 | J15: ='DF raw data'!X17/100 -> 14.045865 | K15: ='DF raw data'!Y17/100 -> -24.995361
A16: 8 | B16: ='DF raw data'!D18/100 -> -12.72651 | C16: ='DF raw data'!E18/100 -> -54.597344 | D16: ='DF raw data'!I18/100 -> -22.322727 | E16: ='DF raw data'!J18/100 -> -37.61219 | F16: ='DF raw data'!N18/100 -> -9.5279608 | G16: ='DF raw data'!O18/100 -> -19.733899 | H16: ='DF raw data'!S18/100 -> -15.392021 | I16: 11.4853 | J16: ='DF raw data'!X18/100 -> 8.8761023 | K16: ='DF raw data'!Y18/100 -> -30.732834
A17: 10 | B17: ='DF raw data'!D19/100 -> -24.896423 | C17: ='DF raw data'!E19/100 -> -68.608174 | D17: ='DF raw data'!I19/100 -> -9.4666626 | E17: ='DF raw data'!J19/100 -> -66.799307 | F17: ='DF raw data'!N19/100 -> -30.394941 | G17: ='DF raw data'!O19/100 -> -14.670593 | H17: ='DF raw data'!S19/100 -> -27.34405 | I17: 13.3657 | J17: ='DF raw data'!X19/100 -> 1.2590024 | K17: ='DF raw data'!Y19/100 -> -39.305881
A19: DF indice | B19: ='DF raw data'!B4 -> 89 | D19: ='DF raw data'!G4 -> 90 | F19: ='DF raw data'!L4 -> 92 | H19: ='DF raw data'!Q4 -> 93 | J19: ='DF raw data'!V4 -> 94
A21: Average | B21: =AVERAGE(B11:B13) -> -1.0030248 | C21: =AVERAGE(C11:C13) -> -28.81531767 | D21: -29.45586667 | E21: -23.12800127 | F21: -4.6187459 | G21: -24.40328783 | H21: -0.6896941 | I21: 7.74286 | J21: 2.3632073 | K21: -12.04408863

Sheet DF raw data
A1: Comment: | B1: 2nd Int scan, PS 16334 10 mm gap | F1: Comment: | G1: 2nd Int scan, PS 16334 15 mm gap | K1: Comment: | L1: 2nd Int scan, PS 16334 20 mm gap | P1: Comment: | Q1: 2nd Int scan, PS 16334 30 mm gap | U1: Comment: | V1: 2nd Int scan, PS 16334 100 mm gap
A2: Date: | B2: 6. feb 2017 | C2: 09:34:25 | F2: Date: | G2: 6. feb 2017 | H2: 09:54:16 | K2: Date: | L2: 6. feb 2017 | M2: 10:22:58 | P2: Date: | Q2: 6. feb 2017 | R2: 10:37:27 | U2: Date: | V2: 6. feb 2017 | W2: 11:11:16
A3: Z-Pos: | B3: 0 | F3: Z-Pos: | G3: 0 | K3: Z-Pos: | L3: 0 | P3: Z-Pos: | Q3: 0 | U3: Z-Pos: | V3: 0
A4: Indice: | B4: 89 | F4: Indice: | G4: 90 | K4: Indice: | L4: 92 | P4: Indice: | Q4: 93 | U4: Indice: | V4: 94
A5: Background Indice: | B5: 89 | F5: Background Indice: | G5: 90 | K5: Background Indice: | L5: 92 | P5: Background Indice: | Q5: 93 | U5: Background Indice: | V5: 94
A6: Temperature: | B6: 20.72 | F6: Temperature: | G6: 20.7 | K6: Temperature: | L6: 20.74 | P6: Temperature: | Q6: 20.76 | U6: Temperature: | V6: 20.78
A7: Encoder: | B7: 390667 | F7: Encoder: | G7: 491273 | K7: Encoder: | L7: 591603 | P7: Encoder: | Q7: 791856 | U7: Encoder: | V7: 2191950
A8: X | B8: IXb | C8: IZb | D8: JXb | E8: JZb | F8: X | G8: IXb | H8: IZb | I8: JXb | J8: JZb | K8: X | L8: IXb | M8: IZb | N8: JXb | O8: JZb | P8: X | Q8: IXb | R8: IZb | S8: JXb | T8: JZb | U8: X | V8: IXb | W8: IZb | X8: JXb | Y8: JZb
A9: -1 | B9: -10.40813 | C9: 22.615561 | D9: -1287.2961 | E9: 503.89404 | F9: -1 | G9: -20.547199 | H9: 15.7215 | I9: -1233.8459 | J9: -59.47559 | K9: -1 | L9: -12.45412 | M9: 18.966721 | N9: -1158.2898 | O9: -409.50635 | P9: -1 | Q9: -13.10886 | R9: 12.82024 | S9: -353.98517 | T9: -903.29102 | U9: -1 | V9: 24.50502 | W9: 47.10722 | X9: -1198.1813 | Y9: -1200.165
A10: -0.80000001 | B10: -16.926889 | C10: 11.92151 | D10: -3047.0127 | E10: -722.57227 | F10: -0.80000001 | G10: -11.1257 | H10: 6.5562 | I10: -2672.9802 | J10: -2062.0659 | K10: -0.80000001 | L10: -0.75678003 | M10: 29.377399 | N10: -991.8811 | O10: 3966.2693 | P10: -0.80000001 | Q10: -17.3123 | R10: 8.1581202 | S10: -2965.4343 | T10: -416.61475 | U10: -0.80000001 | V10: 22.197889 | W10: 27.06238 | X10: 635.03491 | Y10: -184.46338
A11: -0.60000002 | B11: -3.44186 | C11: 11.72412 | D11: -579.58661 | E11: -785.65186 | F11: -0.60000002 | G11: -0.33118001 | H11: 15.3243 | I11: 826.60138 | J11: -10.78516 | K11: -0.60000002 | L11: -16.65489 | M11: 24.74086 | N11: -1671.8174 | O11: 1515.2188 | P11: -0.60000002 | Q11: -4.1212401 | R11: 20.43671 | S11: 643.66199 | T11: 864.9541 | U11: -0.60000002 | V11: 2.96984 | W11: 18.416019 | X11: 300.1167 | Y11: -641.47266
A12: -0.40000001 | B12: -3.57862 | C12: -0.078539997 | D12: -934.41541 | E12: -1556.7407 | F12: -0.40000001 | G12: -3.16677 | H12: 3.0032301 | I12: -1164.6913 | J12: -2372.5337 | K12: -0.40000001 | L12: -0.17578 | M12: -11.79502 | N12: -2173.2637 | O12: -3045.8105 | P12: -0.40000001 | Q12: 4.2343402 | R12: -2.1530499 | S12: 138.3548 | T12: -3132.5342 | U12: -0.40000001 | V12: -4.2705798 | W12: 4.1683102 | X12: -678.32861 | Y12: -2660.3164
A13: -0.2 | B13: -1.21999 | C13: -0.72435999 | D13: -320.25546 | E13: -1848.9551 | F13: -0.2 | G13: -9.9345703 | H13: -4.07024 | I13: -1711.444 | J13: -909.37988 | K13: -0.2 | L13: -6.9236102 | M13: 6.14711 | N13: -1310.3218 | O13: -303.94385 | P13: -0.2 | Q13: -6.7789402 | R13: 12.3074 | S13: -1174.5631 | T13: 724.59424 | U13: -0.2 | V13: -3.58336 | W13: 8.26299 | X13: 814.64069 | Y13: 476.74951
A14: 0 | B14: 3.6421299 | C14: -11.27694 | D14: 641.04199 | E14: -4572.1177 | F14: 0 | G14: -10.04942 | H14: -2.5625501 | I14: -2028.752 | J14: -2317.5615 | K14: 0 | L14: -0.11144 | M14: -4.4263902 | N14: -430.39331 | O14: -4027.2681 | P14: 0 | Q14: 4.7518001 | R14: 2.5121 | S14: 1559.7131 | T14: -3112.1436 | U14: 0 | V14: -4.9184799 | W14: 0.28033 | X14: 1416.5804 | Y14: -1834.5498
A15: 0.2 | B15: -1.19672 | C15: -7.0562401 | D15: -621.69397 | E15: -2223.5225 | F15: 0.2 | G15: -20.72817 | H15: -8.3175001 | I15: -5096.564 | J15: -3711.459 | K15: 0.2 | L15: 0.44391999 | M15: -11.50774 | N15: 355.09134 | O15: -2989.7744 | P15: 0.2 | Q15: -7.8902898 | R15: 0.80365998 | S15: -592.05823 | T15: -1990.3032 | U15: 0.2 | V15: -15.32226 | W15: 2.12151 | X15: -1522.2589 | Y15: -2255.4263
A16: 0.40000001 | B16: -3.2936699 | C16: -7.9275198 | D16: -830.29956 | E16: -3710.5186 | F16: 0.40000001 | G16: 4.2442198 | H16: 3.4748499 | I16: 2018.8856 | J16: -900.64209 | K16: 0.40000001 | L16: -4.6249199 | M16: -4.7775402 | N16: -1807.2213 | O16: -2664.335 | P16: 0.40000001 | Q16: 1.03598 | R16: 11.954 | S16: 1991.611 | T16: -1328.4849 | U16: 0.40000001 | V16: -5.6610198 | W16: 5.9339399 | X16: 1271.269 | Y16: -1089.4971
A17: 0.60000002 | B17: -13.29407 | C17: -21.514299 | D17: -612.44324 | E17: -5614.9009 | F17: 0.60000002 | G17: -12.91609 | H17: -10.83672 | I17: -1910.0403 | J17: -3672.8848 | K17: 0.60000002 | L17: -8.16224 | M17: -15.33613 | N17: -1353.3799 | O17: -6113.5864 | P17: 0.60000002 | Q17: -10.10569 | R17: -0.83767003 | S17: -1379.309 | T17: -1919.5493 | U17: 0.60000002 | V17: -2.8315599 | W17: -0.37485999 | X17: 1404.5865 | Y17: -2499.5361
A18: 0.80000001 | B18: -7.65868 | C18: -16.402149 | D18: -1272.651 | E18: -5459.7344 | F18: 0.80000001 | G18: -11.48851 | H18: -12.71106 | I18: -2232.2727 | J18: -3761.219 | K18: 0.80000001 | L18: -14.88943 | M18: 3.93168 | N18: -952.79608 | O18: -1973.3899 | P18: 0.80000001 | Q18: -12.34858 | R18: 5.4706602 | S18: -1539.2021 | T18: -1606.4983 | U18: 0.80000001 | V18: -3.4389901 | W18: 0.10459 | X18: 887.61023 | Y18: -3073.2834
A19: 1 | B19: -12.52082 | C19: -26.15579 | D19: -2489.6423 | E19: -6860.8174 | F19: 1 | G19: -8.90658 | H19: -16.23193 | I19: -946.66626 | J19: -6679.9307 | K19: 1 | L19: -16.7773 | M19: 6.8986101 | N19: -3039.4941 | O19: -1467.0593 | P19: 1 | Q19: -15.3036 | R19: 1.10812 | S19: -2734.405 | T19: -3563.8088 | U19: 1 | V19: -6.9569302 | W19: -4.60357 | X19: 125.90024 | Y19: -3930.5881
